bitfinex/quotes_BTCUSD_20250730
["timestamp","ask_amount","ask_price","bid_price","bid_amount"]
[1753854819865,0.31839156,118140.0,118130.0,0.1430673]
[1753854820525,0.48696798,118160.0,118140.0,0.0315]
[1753854820742,0.00946337,118150.0,118140.0,0.1189273]
[1753854820957,0.33631774,118150.0,118140.0,0.2511573]
[1753854821177,0.34391623,118150.0,118140.0,0.2511573]
[1753854821393,0.36084364,118150.0,118140.0,0.2743273]
[1753854821605,0.36084357,118150.0,118140.0,0.2743273]
[1753854822465,0.35237983,118150.0,118140.0,0.2743273]
[1753854822679,0.3618435,118150.0,118140.0,0.2743273]
[1753854823118,0.35437983,118150.0,118140.0,0.2743273]
[1753854823993,0.32885408,118150.0,118140.0,0.2743273]
[1753854824219,0.3203907,118150.0,118140.0,0.2743273]
[1753854824432,0.34578149,118150.0,118140.0,0.2743273]
[1753854825279,0.34578142,118150.0,118140.0,0.2743273]
[1753854826273,0.5150584,118150.0,118140.0,0.2743273]
[1753854826493,0.50659502,118150.0,118140.0,0.2743273]
[1753854829812,0.32885451,118150.0,118140.0,0.2743273]
[1753854830016,0.33731825,118150.0,118140.0,0.2743273]
[1753854830669,0.32885451,118150.0,118140.0,0.2743273]
[1753854830942,0.33731825,118150.0,118140.0,0.2743273]
[1753854831177,0.32885451,118150.0,118140.0,0.2743273]
[1753854831410,0.33731825,118150.0,118140.0,0.2743273]
[1753854832959,0.32885451,118150.0,118140.0,0.2743273]
[1753854833179,0.33731825,118150.0,118140.0,0.2743273]
[1753854833385,0.32885451,118150.0,118140.0,0.2743273]
[1753854834387,0.33731825,118150.0,118140.0,0.2743273]
[1753854835609,0.49813121,118150.0,118140.0,0.2378073]
[1753854835829,0.01692942,118130.0,118120.0,0.02663552]
[1753854836042,0.32785708,118130.0,118120.0,0.27558282]
[1753854836253,0.33532184,118130.0,118120.0,0.27558282]
[1753854836678,0.35225211,118130.0,118120.0,0.27558282]
[1753854837137,0.35225211,118130.0,118120.0,0.27658282]
[1753854837362,0.34378751,118130.0,118120.0,0.27658282]
[1753854837576,0.34378751,118130.0,118120.0,0.27758282]
[1753854840044,0.33532234,118130.0,118120.0,0.27758282]
[1753854840240,0.34378751,118130.0,118120.0,0.27758282]
[1753854840398,0.32685724,118130.0,118120.0,0.27758282]
[1753854840596,0.33532234,118130.0,118120.0,0.27758282]
[1753854841204,0.01692971,118130.0,118120.0,0.27758282]
[1753854841409,0.3447875,118130.0,118120.0,0.27758282]
[1753854841613,0.34378737,118130.0,118120.0,0.27758282]
[1753854842591,0.33532227,118130.0,118120.0,0.27758282]
[1753854843229,0.32685724,118130.0,118120.0,0.27758282]
[1753854843855,0.33532227,118130.0,118120.0,0.27758282]
[1753854844621,0.34378744,118130.0,118120.0,0.27758282]
[1753854845240,0.33532227,118130.0,118120.0,0.27758282]
[1753854845643,0.32685724,118130.0,118120.0,0.27758282]
[1753854845850,0.33532227,118130.0,118120.0,0.27758282]
[1753854847334,0.32685724,118130.0,118120.0,0.27758282]
[1753854848024,0.32685695,118130.0,118120.0,0.27758282]
[1753854848242,0.3268568,118130.0,118120.0,0.27758282]
[1753854848633,0.01692927,118130.0,118120.0,0.27758282]
[1753854848873,0.32785693,118130.0,118120.0,0.27758282]
[1753854849095,0.3268568,118130.0,118120.0,0.27758282]
[1753854849981,0.33532154,118130.0,118120.0,0.27758282]
[1753854851384,0.34378643,118130.0,118120.0,0.27758282]
[1753854851626,0.34378679,118130.0,118120.0,0.27758282]
[1753854852815,0.33532183,118130.0,118120.0,0.27758282]
[1753854855200,0.33532176,118130.0,118120.0,0.27758282]
[1753854856261,0.34378672,118130.0,118120.0,0.27758282]
[1753854856668,0.33532176,118130.0,118120.0,0.27758282]
[1753854856840,0.34378665,118130.0,118120.0,0.27758282]
[1753854859550,0.33532176,118130.0,118120.0,0.27758282]
[1753854859752,0.3183922,118130.0,118120.0,0.27758282]
[1753854859984,0.32685702,118130.0,118120.0,0.27758282]
[1753854861921,0.33532198,118130.0,118120.0,0.27758282]
[1753854862549,0.34378701,118130.0,118120.0,0.27758282]
[1753854863606,0.02539445,118130.0,118120.0,0.27758282]
[1753854863861,0.33632211,118130.0,118120.0,0.27758282]
[1753854864082,0.35225218,118130.0,118120.0,0.25893282]
[1753854864526,0.34378701,118130.0,118120.0,0.27533282]
[1753854864936,0.34378701,118130.0,118120.0,0.27748282]
[1753854865841,0.32685702,118130.0,118120.0,0.27748282]
[1753854866053,0.33532198,118130.0,118120.0,0.27748282]
[1753854870093,0.32685702,118130.0,118120.0,0.27748282]
[1753854870296,0.3183922,118130.0,118120.0,0.27748282]
[1753854870726,0.32685702,118130.0,118120.0,0.27748282]
[1753854871422,0.33532205,118130.0,118120.0,0.27748282]
[1753854871870,0.33532198,118130.0,118120.0,0.27748282]
[1753854872757,0.32685702,118130.0,118120.0,0.27748282]
[1753854872985,0.0084646,118130.0,118120.0,0.27748282]
[1753854873202,0.00946473,118130.0,118120.0,0.27748282]
[1753854873436,0.52620389,118150.0,118140.0,0.0319]
[1753854873658,0.84459502,118150.0,118140.0,0.16166]
[1753854873873,0.84459502,118150.0,118140.0,0.18932]
[1753854874082,0.83613142,118150.0,118140.0,0.15437]
[1753854874310,0.52620389,118150.0,118140.0,0.15437]
[1753854874531,0.83613142,118150.0,118140.0,0.15437]
[1753854874786,0.83613142,118150.0,118140.0,0.12976]
[1753854874974,0.83713142,118150.0,118140.0,0.12976]
[1753854875189,0.83813142,118150.0,118140.0,0.15437]
[1753854877283,0.18621944,118140.0,118130.0,0.00305]
[1753854877495,0.50461121,118140.0,118130.0,0.2418973]
[1753854878167,0.50461121,118140.0,118130.0,0.2575973]
[1753854878395,0.49614697,118140.0,118130.0,0.2733973]
[1753854879569,0.49614697,118140.0,118130.0,0.2388473]
[1753854879782,0.49614697,118140.0,118130.0,0.2142373]
[1753854880006,0.49614697,118140.0,118130.0,0.2388473]
[1753854880685,0.49614697,118140.0,118130.0,0.2418973]
[1753854881015,0.49614697,118140.0,118130.0,0.2573973]
[1753854881251,0.18621944,118140.0,118130.0,0.2737973]
[1753854881494,0.49614697,118140.0,118130.0,0.2759473]
[1753854883425,0.18621944,118140.0,118130.0,0.2759473]
[1753854883614,0.49614697,118140.0,118130.0,0.2759473]
[1753854884591,0.48768266,118140.0,118130.0,0.2759473]
[1753854884796,0.48768266,118140.0,118130.0,0.2388473]
[1753854885020,0.48768266,118140.0,118130.0,0.12976]
[1753854885401,0.48768266,118140.0,118130.0,0.15437]
[1753854885786,0.82768266,118140.0,118130.0,0.12972]
[1753854886248,0.84298266,118140.0,118130.0,0.12972]
[1753854886620,0.82768266,118140.0,118130.0,0.12972]
[1753854887123,0.82868266,118140.0,118130.0,0.12972]
[1753854887743,0.82868266,118140.0,118130.0,0.15433]
[1753854888125,0.82968266,118140.0,118130.0,0.15433]
[1753854889771,0.82968266,118140.0,118130.0,0.18824]
[1753854890614,0.82968266,118140.0,118130.0,0.15734]
[1753854891032,0.82968266,118140.0,118130.0,0.15433]
[1753854893090,0.82968266,118140.0,118130.0,0.12972]
[1753854893306,0.86108266,118140.0,118130.0,0.12972]
[1753854893948,0.82968266,118140.0,118130.0,0.12972]
[1753854895873,0.82968266,118140.0,118130.0,0.15413]
[1753854897919,0.82968266,118140.0,118130.0,0.15714]
[1753854898586,0.85512566,118140.0,118130.0,0.15714]
[1753854899446,0.86056246,118140.0,118130.0,0.15714]
[1753854900725,0.86056246,118140.0,118130.0,0.15413]
[1753854901388,0.9623701,118130.0,118120.0,0.05629552]
[1753854901621,1.27229763,118130.0,118120.0,0.15762552]
[1753854901835,1.27229763,118130.0,118120.0,0.13020552]
[1753854902499,1.27773443,118130.0,118120.0,0.13020552]
[1753854902924,1.28073443,118130.0,118120.0,0.15461552]
[1753854903432,1.28073443,118130.0,118120.0,0.15762552]
[1753854904128,1.30618043,118130.0,118120.0,0.15762552]
[1753854904552,1.30718043,118130.0,118120.0,0.15762552]
[1753854911313,1.30718043,118130.0,118120.0,0.19002552]
[1753854912297,0.9972529,118130.0,118120.0,0.19002552]
[1753854912517,1.30718043,118130.0,118120.0,0.19002552]
[1753854914456,1.30718043,118130.0,118120.0,0.19215552]
[1753854920822,1.46254544,118130.0,118120.0,0.19215552]
[1753854922330,0.9972529,118130.0,118120.0,0.19215552]
[1753854922541,1.46254544,118130.0,118120.0,0.19215552]
[1753854940474,1.47101047,118130.0,118120.0,0.19215552]
[1753854943636,1.00571793,118130.0,118120.0,0.19215552]
[1753854943841,1.47101047,118130.0,118120.0,0.19215552]
[1753854944485,1.00571793,118130.0,118120.0,0.19215552]
[1753854944696,1.47101047,118130.0,118120.0,0.19215552]
[1753854944908,1.00571793,118130.0,118120.0,0.19215552]
[1753854945113,1.47101047,118130.0,118120.0,0.19215552]
[1753854948898,1.47101047,118130.0,118120.0,0.19002552]
[1753854951365,1.47101047,118130.0,118120.0,0.18701552]
[1753854952003,1.47101047,118130.0,118120.0,0.19019552]
[1753854953292,1.47101047,118130.0,118120.0,0.19217552]
[1753854953511,1.00571793,118130.0,118120.0,0.19217552]
[1753854953724,1.47101047,118130.0,118120.0,0.19217552]
[1753854954351,0.83641293,118130.0,118120.0,0.19217552]
[1753854954553,0.49641214,118130.0,118120.0,0.27665282]
[1753854954763,0.70361241,118130.0,118120.0,0.27665282]
[1753854955372,0.7120773,118130.0,118120.0,0.27665282]
[1753854955629,0.70361241,118130.0,118120.0,0.27665282]
[1753854956050,0.7120773,118130.0,118120.0,0.27665282]
[1753854956487,0.70361241,118130.0,118120.0,0.27665282]
[1753854957502,0.69514767,118130.0,118120.0,0.27665282]
[1753854957712,0.70361241,118130.0,118120.0,0.27665282]
[1753854957955,0.71207723,118130.0,118120.0,0.27665282]
[1753854958815,0.69514767,118130.0,118120.0,0.27665282]
[1753854960385,0.68668307,118130.0,118120.0,0.27665282]
[1753854960603,0.69514767,118130.0,118120.0,0.27665282]
[1753854961653,0.68668307,118130.0,118120.0,0.27665282]
[1753854962993,0.69514767,118130.0,118120.0,0.27665282]
[1753854963216,0.68668307,118130.0,118120.0,0.27665282]
[1753854963657,0.4540368,118130.0,118120.0,0.44597215]
[1753854963885,0.68668307,118130.0,118120.0,0.44597215]
[1753854964104,0.68668307,118130.0,118120.0,0.27665282]
[1753854965673,0.4540368,118130.0,118120.0,0.27665282]
[1753854965872,0.68668307,118130.0,118120.0,0.27665282]
[1753854967346,0.69514767,118130.0,118120.0,0.27665282]
[1753854968333,0.68668307,118130.0,118120.0,0.27665282]
[1753854968682,0.69514767,118130.0,118120.0,0.27665282]
[1753854969390,0.68668307,118130.0,118120.0,0.27665282]
[1753854969620,0.69514781,118130.0,118120.0,0.27665282]
[1753854970652,0.69514774,118130.0,118120.0,0.27665282]
[1753854974950,0.71207744,118130.0,118120.0,0.27665282]
[1753854975156,0.71207737,118130.0,118120.0,0.27665282]
[1753854975334,0.70361248,118130.0,118120.0,0.27665282]
[1753854975741,0.71207737,118130.0,118120.0,0.27665282]
[1753854976308,0.7120773,118130.0,118120.0,0.27665282]
[1753854978849,0.69514774,118130.0,118120.0,0.27665282]
[1753854979054,0.68668307,118130.0,118120.0,0.27665282]
[1753854979664,0.69514774,118130.0,118120.0,0.27665282]
[1753854980086,0.69514767,118130.0,118120.0,0.27665282]
[1753854981124,0.70361234,118130.0,118120.0,0.27665282]
[1753854981326,0.69514767,118130.0,118120.0,0.27665282]
[1753854981530,0.68668307,118130.0,118120.0,0.27665282]
[1753854981742,0.4540368,118130.0,118120.0,0.67861842]
[1753854982205,0.4540368,118130.0,118120.0,0.44597215]
[1753854982640,0.0064368,118130.0,118120.0,0.44597215]
[1753854982855,0.0054368,118130.0,118120.0,0.44597215]
[1753854986732,0.0054368,118130.0,118120.0,0.68708438]
[1753854987567,0.0054368,118130.0,118120.0,0.67861842]
[1753854990695,0.0054368,118130.0,118120.0,0.68708438]
[1753854991120,0.0054368,118130.0,118120.0,0.67861842]
[1753854991538,0.0054368,118130.0,118120.0,0.44597215]
[1753854994929,0.0054368,118130.0,118120.0,0.67861842]
[1753854998437,0.0054368,118130.0,118120.0,0.68708438]
[1753854998650,0.0054368,118130.0,118120.0,0.67861842]
[1753855004088,0.0054368,118130.0,118120.0,0.44597215]
[1753855004292,0.2390832,118130.0,118120.0,0.27665282]
[1753855004473,0.23808307,118130.0,118120.0,0.27665282]
[1753855004677,0.0054368,118130.0,118120.0,0.27665282]
[1753855004887,0.23808307,118130.0,118120.0,0.27665282]
[1753855005085,0.24654767,118130.0,118120.0,0.27665282]
[1753855005520,0.23808307,118130.0,118120.0,0.27665282]
[1753855007751,0.24654774,118130.0,118120.0,0.27665282]
[1753855008420,0.23808307,118130.0,118120.0,0.27665282]
[1753855008611,0.24654774,118130.0,118120.0,0.27665282]
[1753855008861,0.0054368,118130.0,118120.0,0.27665282]
[1753855009059,0.2390832,118130.0,118120.0,0.27665282]
[1753855009271,0.23808307,118130.0,118120.0,0.27665282]
[1753855009702,0.25501249,118130.0,118120.0,0.27665282]
[1753855010561,0.25501241,118130.0,118120.0,0.27665282]
[1753855015668,0.2634773,118130.0,118120.0,0.27665282]
[1753855016000,0.25501241,118130.0,118120.0,0.27665282]
[1753855016383,0.26347723,118130.0,118120.0,0.27665282]
[1753855016615,0.25501241,118130.0,118120.0,0.27665282]
[1753855018779,0.23808307,118130.0,118120.0,0.27665282]
[1753855023217,0.23808307,118130.0,118120.0,0.44597215]
[1753855024178,0.0054368,118130.0,118120.0,0.44597215]
[1753855025774,0.23808307,118130.0,118120.0,0.44597215]
[1753855028151,0.0054368,118130.0,118120.0,0.44597215]
[1753855029825,0.23808307,118130.0,118120.0,0.44597215]
[1753855033616,0.0054368,118130.0,118120.0,0.44597215]
[1753855034325,0.0054368,118130.0,118120.0,0.68708438]
[1753855034516,0.0054368,118130.0,118120.0,0.94512782]
[1753855034728,0.0054368,118130.0,118120.0,0.95359328]
[1753855037339,0.0054368,118130.0,118120.0,1.15803328]
[1753855037544,0.0054368,118130.0,118120.0,1.15903328]
[1753855037753,0.0054368,118130.0,118120.0,1.15803328]
[1753855037965,0.0054368,118130.0,118120.0,1.16003328]
[1753855038405,0.0054368,118130.0,118120.0,1.16203328]
[1753855042383,0.0054368,118130.0,118120.0,0.69674074]
[1753855042588,0.0054368,118130.0,118120.0,1.16203328]
[1753855042786,0.0054368,118130.0,118120.0,0.92938701]
[1753855042992,0.0054368,118130.0,118120.0,0.69674074]
[1753855043194,0.0054368,118130.0,118120.0,1.16203328]
[1753855057231,0.0054368,118130.0,118120.0,0.69674074]
[1753855057461,0.0054368,118130.0,118120.0,1.16203328]
[1753855062001,0.0054368,118130.0,118120.0,0.92938701]
[1753855062620,0.0054368,118130.0,118120.0,1.16203328]
[1753855065036,0.0054368,118130.0,118120.0,0.92938701]
[1753855072492,0.0054368,118130.0,118120.0,0.65393215]
[1753855072710,0.23808307,118130.0,118120.0,0.65195215]
[1753855072910,0.0054368,118130.0,118120.0,0.66041804]
[1753855073114,0.23808307,118130.0,118120.0,0.66888386]
[1753855073320,0.0054368,118130.0,118120.0,0.66688386]
[1753855073776,0.0054368,118130.0,118120.0,0.66788386]
[1753855073961,0.0054368,118130.0,118120.0,0.66488386]
[1753855074576,0.0054368,118130.0,118120.0,0.64895215]
[1753855074856,0.0054368,118130.0,118120.0,0.65741811]
[1753855075078,0.23808307,118130.0,118120.0,0.61655215]
[1753855075612,0.23808307,118130.0,118120.0,0.64194982]
[1753855075807,0.0054368,118130.0,118120.0,0.65844982]
[1753855076033,0.0054368,118130.0,118120.0,0.67484982]
[1753855076239,0.0054368,118130.0,118120.0,0.666384]
[1753855076439,0.0054368,118130.0,118120.0,0.63305215]
[1753855076645,0.0054368,118130.0,118120.0,0.64998393]
[1753855077732,0.0054368,118130.0,118120.0,0.64147811]
[1753855078538,0.0054368,118130.0,118120.0,0.63301215]
[1753855078752,0.0054368,118130.0,118120.0,0.64147811]
[1753855078982,0.0054368,118130.0,118120.0,0.668334]
[1753855079423,0.0054368,118130.0,118120.0,0.62497811]
[1753855080141,0.0054368,118130.0,118120.0,0.635434]
[1753855080371,0.0054368,118130.0,118120.0,0.64389968]
[1753855080614,0.0054368,118130.0,118120.0,0.463694]
[1753855080998,0.0054368,118130.0,118120.0,0.47215975]
[1753855081231,0.0054368,118130.0,118120.0,0.48062543]
[1753855081435,0.0054368,118130.0,118120.0,0.47215975]
[1753855082057,0.0054368,118130.0,118120.0,0.45522811]
[1753855082262,0.0054368,118130.0,118120.0,0.463694]
[1753855083465,0.0054368,118130.0,118120.0,0.47215968]
[1753855083925,0.0054368,118130.0,118120.0,0.48062543]
[1753855084335,0.0054368,118130.0,118120.0,0.48909103]
[1753855084754,0.0054368,118130.0,118120.0,0.48909053]
[1753855084962,0.0054368,118130.0,118120.0,0.7217368]
[1753855085221,0.0054368,118130.0,118120.0,0.70480574]
[1753855085850,0.0054368,118130.0,118120.0,0.71327127]
[1753855086054,0.0054368,118130.0,118120.0,0.72173673]
[1753855086260,0.0054368,118130.0,118120.0,0.71327127]
[1753855086510,0.0054368,118130.0,118120.0,0.72173673]
[1753855090961,0.0054368,118130.0,118120.0,0.954383]
[1753855095734,0.0054368,118130.0,118120.0,0.979819]
[1753855104639,0.0054368,118130.0,118120.0,1.183219]
[1753855114047,0.0054368,118130.0,118120.0,1.183099]
[1753855120228,0.0054368,118130.0,118120.0,1.54054802]
[1753855122525,0.0054368,118130.0,118120.0,1.07525548]
[1753855122726,0.0054368,118130.0,118120.0,1.54054802]
[1753855138389,0.0054368,118130.0,118120.0,1.07525548]
[1753855138612,0.0054368,118130.0,118120.0,1.54054802]
[1753855149961,0.0054368,118130.0,118120.0,1.07525548]
[1753855150156,0.0054368,118130.0,118120.0,1.54054802]
[1753855154185,0.0054368,118130.0,118120.0,1.01278948]
[1753855154415,0.0054368,118130.0,118120.0,1.24543575]
[1753855154865,0.0054368,118130.0,118120.0,1.24843575]
[1753855157555,0.0054368,118130.0,118120.0,1.25042575]
[1753855157789,0.0054368,118130.0,118120.0,1.26582575]
[1753855159490,0.0054368,118130.0,118120.0,1.28082575]
[1753855163037,0.0054368,118130.0,118120.0,1.04817948]
[1753855163286,0.0054368,118130.0,118120.0,1.28082575]
[1753855170955,0.0054368,118130.0,118120.0,1.51347202]
[1753855199043,0.0054368,118130.0,118120.0,1.53890602]
[1753855201215,0.0054368,118130.0,118120.0,1.07361348]
[1753855201434,0.0054368,118130.0,118120.0,1.30625975]
[1753855202485,0.0054368,118130.0,118120.0,1.53890602]
[1753855209561,0.0054368,118130.0,118120.0,1.07361348]
[1753855209794,0.0054368,118130.0,118120.0,1.53890602]
[1753855210010,0.0054368,118130.0,118120.0,1.77155229]
[1753855210228,0.0054368,118130.0,118120.0,1.89155229]
[1753855210449,1e-08,118130.0,118120.0,2.05155229]
[1753855210896,1e-08,118130.0,118120.0,2.10155228]
[1753855211324,1e-08,118130.0,118120.0,2.10055228]
[1753855211796,1e-08,118130.0,118120.0,2.79749109]
[1753855212051,1e-08,118130.0,118120.0,2.09955228]
[1753855212264,1e-08,118130.0,118120.0,2.79749109]
[1753855212483,1e-08,118130.0,118120.0,2.09955228]
[1753855213134,1e-08,118130.0,118120.0,2.10355228]
[1753855213567,1e-08,118130.0,118120.0,2.10655228]
[1753855214447,1e-08,118130.0,118120.0,2.10355228]
[1753855214689,1e-08,118130.0,118120.0,2.09955228]
[1753855214897,1e-08,118130.0,118120.0,2.10455228]
[1753855215115,1e-08,118130.0,118120.0,2.11055228]
[1753855218029,1e-08,118130.0,118120.0,2.80849109]
[1753855218467,1e-08,118130.0,118120.0,2.11055228]
[1753855219113,1e-08,118130.0,118120.0,2.80849109]
[1753855223836,1e-08,118130.0,118120.0,2.11055228]
[1753855230491,1e-08,118130.0,118120.0,1.98163228]
[1753855230722,1e-08,118130.0,118120.0,1.64762601]
[1753855230897,1e-08,118130.0,118120.0,1.64563601]
[1753855231063,1e-08,118130.0,118120.0,1.68563601]
[1753855231265,1e-08,118130.0,118120.0,1.68767601]
[1753855231684,1e-08,118130.0,118120.0,1.63767602]
[1753855232138,1e-08,118130.0,118120.0,1.50699602]
[1753855232366,1e-08,118130.0,118120.0,1.63263602]
[1753855232592,1e-08,118130.0,118120.0,1.24263602]
[1753855233042,1e-08,118130.0,118120.0,1.58263602]
[1753855234799,1e-08,118130.0,118120.0,1.06253348]
[1753855235021,1e-08,118130.0,118120.0,1.52782602]
[1753855235237,1e-08,118130.0,118120.0,1.48782602]
[1753855236115,1e-08,118130.0,118120.0,1.54241602]
[1753855236534,1e-08,118130.0,118120.0,1.54536602]
[1753855239296,1e-08,118130.0,118120.0,1.51211602]
[1753855241309,1e-08,118130.0,118120.0,1.04682348]
[1753855241534,1e-08,118130.0,118120.0,1.51211602]
[1753855242427,1e-08,118130.0,118120.0,1.51506602]
[1753855246116,1e-08,118130.0,118120.0,1.54770602]
[1753855251932,1e-08,118130.0,118120.0,1.78035229]
[1753855252607,1e-08,118130.0,118120.0,1.88035229]
[1753855252831,1e-08,118130.0,118120.0,2.73501048]
[1753855253254,1e-08,118130.0,118120.0,2.67829109]
[1753855253715,1e-08,118130.0,118120.0,1.98035228]
[1753855254977,1e-08,118130.0,118120.0,1.90198853]
[1753855269726,1e-08,118130.0,118120.0,2.16678853]
[1753855276878,1e-08,118130.0,118120.0,1.29908446]
[1753855277159,1e-08,118130.0,118120.0,1.92738781]
[1753855277392,1e-08,118130.0,118120.0,1.96043683]
[1753855278324,1e-08,118130.0,118120.0,2.19476851]
[1753855278554,1e-08,118130.0,118120.0,2.27324047]
[1753855279025,1e-08,118130.0,118120.0,2.24476851]
[1753855280937,1e-08,118130.0,118120.0,2.16726299]
[1753855287528,1e-08,118130.0,118120.0,2.117263]
[1753855287754,1e-08,118130.0,118120.0,2.16726299]
[1753855296818,1e-08,118130.0,118120.0,1.54765347]
[1753855297042,1e-08,118130.0,118120.0,2.16726299]
[1753855299837,0.00642892,118160.0,118150.0,0.55211594]
[1753855300055,0.02212892,118160.0,118150.0,0.76511324]
[1753855300859,0.02212892,118160.0,118150.0,0.99748256]
[1753855301102,0.02212892,118160.0,118150.0,1.0230343]
[1753855301301,0.02212892,118160.0,118150.0,1.0250343]
[1753855301702,0.02212892,118160.0,118150.0,1.2283943]
[1753855301933,0.02212892,118160.0,118150.0,1.2303943]
[1753855302617,0.0157,118160.0,118150.0,1.2303943]
[1753855303067,0.0221,118160.0,118150.0,1.2303943]
[1753855305085,0.0221,118160.0,118150.0,1.23899736]
[1753855307052,0.0221,118160.0,118150.0,1.00662804]
[1753855307260,0.0221,118160.0,118150.0,1.23899736]
[1753855308101,0.0157,118160.0,118150.0,1.23899736]
[1753855308538,0.0157,118160.0,118150.0,1.26356736]
[1753855308997,0.0157,118160.0,118150.0,1.03119804]
[1753855309212,0.0157,118160.0,118150.0,1.26356736]
[1753855310376,0.0157,118160.0,118150.0,1.26680736]
[1753855310796,0.25516932,118170.0,118160.0,0.19465043]
[1753855311001,0.25516932,118170.0,118160.0,0.61096773]
[1753855311984,0.02284851,118170.0,118160.0,0.61096773]
[1753855312171,0.25521783,118170.0,118160.0,0.61296773]
[1753855314291,0.02284851,118170.0,118160.0,0.61296773]
[1753855314438,0.25521783,118170.0,118160.0,0.63753773]
[1753855316031,0.01644851,118170.0,118160.0,0.87314705]
[1753855316251,0.00044851,118170.0,118160.0,0.89272607]
[1753855317507,0.00044851,118170.0,118160.0,0.90862607]
[1753855317691,0.00044851,118170.0,118160.0,0.89272607]
[1753855318243,0.00044851,118170.0,118160.0,0.90862607]
[1753855319521,0.00044851,118170.0,118160.0,1.48099539]
[1753855319706,0.00044851,118170.0,118160.0,1.49689539]
[1753855320338,0.00044851,118170.0,118160.0,1.69689539]
[1753855320556,0.00044851,118170.0,118160.0,1.49689539]
[1753855321401,0.00044851,118170.0,118160.0,1.49589539]
[1753855321604,0.00044851,118170.0,118160.0,1.03015675]
[1753855321968,0.00044851,118170.0,118160.0,1.26752607]
[1753855322154,0.00044851,118170.0,118160.0,1.03515675]
[1753855322356,0.00044851,118170.0,118160.0,1.26752607]
[1753855322577,0.00044851,118170.0,118160.0,1.13904607]
[1753855322805,0.00044851,118170.0,118160.0,1.26752607]
[1753855326077,0.00044851,118170.0,118160.0,1.29295007]
[1753855327942,0.00044851,118170.0,118160.0,1.06058075]
[1753855328148,0.00044851,118170.0,118160.0,1.29295007]
[1753855329033,0.00044851,118170.0,118160.0,1.29291007]
[1753855334420,0.00044851,118170.0,118160.0,1.06054075]
[1753855334631,0.00044851,118170.0,118160.0,1.29291007]
[1753855336401,0.00044851,118170.0,118160.0,1.52527939]
[1753855347498,0.00044851,118170.0,118160.0,1.06054075]
[1753855347954,0.00044851,118170.0,118160.0,1.52527939]
[1753855348439,0.00044851,118170.0,118160.0,1.29291007]
[1753855352751,0.00044851,118170.0,118160.0,1.52527939]
[1753855367039,0.00044851,118170.0,118160.0,1.06054075]
[1753855367262,0.00044851,118170.0,118160.0,1.52527939]
[1753855378354,0.00044851,118170.0,118160.0,1.52519939]
[1753855381161,0.00044851,118170.0,118160.0,1.06046075]
[1753855381371,0.00044851,118170.0,118160.0,1.52519939]
[1753855384523,0.00044851,118170.0,118160.0,1.29283007]
[1753855385020,0.00044851,118170.0,118160.0,1.52519939]
[1753855391077,0.00044851,118170.0,118160.0,1.29283007]
[1753855392613,0.00044851,118170.0,118160.0,1.52519939]
[1753855398082,0.00044851,118170.0,118160.0,1.29283007]
[1753855400549,0.00044851,118170.0,118160.0,1.52519939]
[1753855407192,0.00044851,118170.0,118160.0,1.46010105]
[1753855422250,0.00044851,118170.0,118160.0,0.99536241]
[1753855422885,0.00044851,118170.0,118160.0,1.22773173]
[1753855424303,0.00044851,118170.0,118160.0,1.46010105]
[1753855425336,0.00044851,118170.0,118160.0,1.22773173]
[1753855425713,0.00044851,118170.0,118160.0,0.99536241]
[1753855425933,0.00044851,118170.0,118160.0,1.22773173]
[1753855428185,0.00044851,118170.0,118160.0,1.46010105]
[1753855430738,0.00044851,118170.0,118160.0,1.22773173]
[1753855430911,0.00044851,118170.0,118160.0,1.46010105]
[1753855431280,0.00044851,118170.0,118160.0,1.22773173]
[1753855432637,0.00044851,118170.0,118160.0,1.46010105]
[1753855432848,0.00044851,118170.0,118160.0,1.22773173]
[1753855434149,0.00044851,118170.0,118160.0,0.99536241]
[1753855434402,0.00044851,118170.0,118160.0,1.46010105]
[1753855434998,0.00044851,118170.0,118160.0,1.22773173]
[1753855438919,0.00044851,118170.0,118160.0,1.46010105]
[1753855439144,0.00044851,118170.0,118160.0,1.22773173]
[1753855439522,0.00044851,118170.0,118160.0,1.46010105]
[1753855440306,0.0004,118180.0,118170.0,0.19463397]
[1753855440534,0.0004,118200.0,118190.0,0.58365006]
[1753855440759,0.0004,118200.0,118190.0,0.79847736]
[1753855440952,0.23276932,118200.0,118190.0,0.83214736]
[1753855441160,0.23276932,118200.0,118190.0,0.83007736]
[1753855441613,0.0004,118200.0,118190.0,0.83007736]
[1753855441830,0.0004,118200.0,118190.0,0.83214736]
[1753855442068,0.0004,118200.0,118190.0,0.83314736]
[1753855442588,0.0004,118200.0,118190.0,1.06551668]
[1753855443024,0.0004,118200.0,118190.0,1.28533668]
[1753855445464,0.0004,118200.0,118190.0,1.05296736]
[1753855445801,0.0004,118200.0,118190.0,1.28533668]
[1753855452196,0.0004,118200.0,118190.0,1.05296736]
[1753855453182,0.23276932,118200.0,118190.0,1.05292736]
[1753855453562,0.0004,118200.0,118190.0,1.05292736]
[1753855453799,0.23276932,118200.0,118190.0,1.05292736]
[1753855456686,0.0004,118200.0,118190.0,1.05292736]
[1753855457122,0.23276932,118200.0,118190.0,1.05292736]
[1753855457346,0.23276932,118200.0,118190.0,1.03642736]
[1753855457944,0.23276932,118200.0,118190.0,1.00100834]
[1753855458162,0.23276932,118200.0,118190.0,1.03417834]
[1753855458368,0.0004,118200.0,118190.0,1.03417834]
[1753855458549,0.23276932,118200.0,118190.0,1.03417834]
[1753855458975,0.23276932,118200.0,118190.0,0.90593834]
[1753855459174,0.23276932,118200.0,118190.0,1.03417834]
[1753855459820,0.23276932,118200.0,118190.0,1.01887834]
[1753855460046,0.23276932,118200.0,118190.0,0.99785834]
[1753855460518,0.23276932,118200.0,118190.0,1.00081834]
[1753855460720,0.23276932,118200.0,118190.0,1.01856834]
[1753855461022,0.0004,118200.0,118190.0,1.01856834]
[1753855461235,0.23276932,118200.0,118190.0,1.01856834]
[1753855462480,0.0004,118200.0,118190.0,1.01856834]
[1753855462656,0.23276932,118200.0,118190.0,1.01856834]
[1753855463043,0.23276932,118200.0,118190.0,1.03416834]
[1753855465618,0.23276932,118200.0,118190.0,1.01856834]
[1753855467870,0.23276932,118200.0,118190.0,1.00286834]
[1753855469407,0.23276932,118200.0,118190.0,1.01926834]
[1753855473775,0.23276932,118200.0,118190.0,1.03426834]
[1753855474224,0.0004,118200.0,118190.0,1.03426834]
[1753855474650,0.23276932,118200.0,118190.0,1.03426834]
[1753855475309,0.0004,118200.0,118190.0,1.00081834]
[1753855475554,0.23276932,118200.0,118190.0,1.00081834]
[1753855475767,0.23276932,118200.0,118190.0,1.01691834]
[1753855475983,0.23276932,118200.0,118190.0,1.01896834]
[1753855478101,0.23276932,118200.0,118190.0,1.01944834]
[1753855479108,0.23276932,118200.0,118190.0,1.03494834]
[1753855479951,0.0004,118200.0,118190.0,1.26731766]
[1753855480635,0.0004,118200.0,118190.0,1.28476668]
[1753855490456,0.0004,118200.0,118190.0,1.05239736]
[1753855490724,0.0004,118200.0,118190.0,1.28476668]